bitfinex-derivatives/quotes_ETHF0:USTF0_20250520
["timestamp","ask_amount","ask_price","bid_price","bid_amount"]
[1747749994606,6.79794485,2480.8,2480.7,0.44836313]
[1747749994800,6.79794485,2480.8,2480.7,1.25433313]
[1747749995006,2.74604485,2480.8,2480.7,1.25433313]
[1747749995504,4.84484485,2480.8,2480.7,1.25433313]
[1747749995703,4.84484485,2480.8,2480.7,0.44836313]
[1747749996201,4.92970962,2480.8,2480.7,1.25433313]
[1747749997507,2.83090962,2480.8,2480.7,1.25433313]
[1747749997906,2.83090962,2480.8,2480.7,10.53433313]
[1747749998102,2.83090962,2480.8,2480.7,12.54985313]
[1747749998302,2.83090962,2480.8,2480.7,14.52905313]
[1747749999603,1.09780962,2480.8,2480.7,19.52905313]
[1747749999801,2.0262,2481.5,2481.4,0.80575]
[1747750000008,2.83191,2481.5,2481.4,0.12594452]
[1747750000199,12.58686,2481.5,2481.4,0.12594452]
[1747750000597,13.7955,2481.5,2480.7,3.53021861]
[1747750000894,13.7955,2481.5,2480.8,0.12593913]
[1747750000895,3.2078,2481.1,2480.8,0.12593913]
[1747750001099,7.06419,2481.0,2480.9,0.80591]
[1747750001496,9.079545,2481.0,2480.9,0.80591]
[1747750001706,8.273655,2481.0,2480.9,0.80591]
[1747750002208,11.013655,2481.0,2480.9,0.80591]
[1747750002910,16.013655,2481.0,2480.7,3.2078]
[1747750003113,0.80604,2480.6,2480.5,0.80601]
[1747750003305,0.80602,2480.6,2480.5,0.80604]
[1747750003612,2.01568,2480.6,2480.5,0.80604]
[1747750004012,2.82169,2480.6,2480.4,0.81209485]
[1747750004309,1.9643,2480.5,2480.4,0.81209485]
[1747750004698,1.9643,2480.5,2480.4,2.82785985]
[1747750004898,2.74,2480.6,2480.5,0.80604]
[1747750005098,2.74,2480.6,2480.5,2.74864]
[1747750005312,2.74,2480.6,2480.5,4.76432]
[1747750006107,2.74,2480.6,2480.5,14.04632]
[1747750007915,2.74,2480.6,2480.5,14.36876159]
[1747750009012,1.29239,2480.6,2480.5,14.65463688]
[1747750009212,4.77e-06,2480.8,2480.5,19.65463688]
[1747750009521,0.80583,2481.2,2481.1,0.80581]
[1747750009724,0.80583,2481.2,2481.1,9.281]
[1747750009913,2.821025,2481.2,2481.1,9.281]
[1747750010109,5.561025,2481.2,2481.1,9.281]
[1747750010416,5.561025,2481.2,2481.1,10.08684]
[1747750010617,5.561025,2481.2,2481.1,0.32244159]
[1747750011417,7.516025,2481.2,2481.1,0.32244159]
[1747750011619,12.516025,2481.2,2481.1,0.32244159]
[1747750012111,0.80591,2480.9,2480.8,0.28587529]
[1747750012314,4.01371,2480.9,2480.8,0.28587529]
[1747750012512,0.80601,2480.6,2480.5,10.08704]
[1747750012711,0.80601,2480.6,2480.5,9.281]
[1747750012912,2.82169,2480.6,2480.5,9.281]
[1747750013111,5.56169,2480.6,2480.5,9.40696861]
[1747750013318,7.64515477,2480.6,2480.5,9.40696861]
[1747750013515,7.64515477,2480.6,2480.5,0.12596861]
[1747750014815,0.80604,2480.5,2480.4,2.81770485]
[1747750015020,2.80464,2480.5,2480.4,2.81770485]
[1747750015222,4.820405,2480.5,2480.4,2.81770485]
[1747750015421,4.820405,2480.5,2480.4,0.00604485]
[1747750015622,4.820405,2480.5,2480.4,0.13201743]
[1747750016221,7.560405,2480.5,2480.4,0.13201743]
[1747750016627,0.80614,2480.2,2480.1,0.28587529]
[1747750017118,0.80617,2480.1,2480.0,1.09207529]
[1747750017319,2.93457,2480.1,2480.0,1.21806754]
[1747750017520,2.93457,2480.1,2480.0,0.41186754]
[1747750017521,4.95066,2480.1,2480.0,0.41186754]
[1747750017917,3.54616,2480.2,2480.1,0.80617]
[1747750018216,5.56221,2480.2,2480.1,0.93216225]
[1747750018919,2.74,2480.2,2480.1,12.23116725]
[1747750019128,2.74,2480.2,2480.1,16.36486725]
[1747750020229,3.54614,2480.2,2480.1,7.08186725]
[1747750020525,2.74,2480.2,2480.1,16.36486725]
[1747750020726,3.54614,2480.2,2480.1,16.36486725]
[1747750020926,5.562145,2480.2,2480.1,0.12599225]
[1747750021124,7.696445,2480.2,2480.1,0.41186754]
[1747750021525,5.68044,2480.2,2480.1,1.21803754]
[1747750021723,3.54614,2480.2,2480.1,1.21803754]
[1747750022114,3.54614,2480.2,2480.1,3.23404254]
[1747750022319,2.74,2480.2,2480.1,3.23404254]
[1747750022821,5.562145,2480.2,2480.1,0.93216225]
[1747750023128,5.562145,2480.2,2480.1,0.12599225]
[1747750023421,5.562145,2480.2,2480.1,0.93216225]
[1747750023929,5.562145,2480.2,2480.1,0.80617]
[1747750024124,0.80617,2480.1,2480.0,3.20475529]
[1747750024327,0.80617,2480.1,2480.0,0.28587529]
[1747750024533,9.00996,2480.1,2480.0,0.28587529]
[1747750024826,9.00996,2480.1,2480.0,0.4118676]
[1747750025227,11.74996,2480.1,2480.0,0.4118676]
[1747750025427,16.74996,2480.1,2480.0,0.4118676]
[1747750025628,16.74996,2480.1,2479.8,0.43512357]
[1747750025629,0.80623,2479.9,2479.8,0.43512357]
[1747750025931,4.01403,2479.9,2479.8,0.43512357]
[1747750026231,13.77028001,2479.9,2479.8,0.43512357]
[1747750026621,0.80633,2479.6,2479.5,0.57331158]
[1747750026825,4.01413,2479.6,2479.5,0.57331158]
[1747750027026,2.01594,2479.5,2479.0,1.29747618]
[1747750027218,0.80666,2478.6,2478.5,1.00746776]
[1747750027722,2.82397,2478.6,2478.5,1.00746776]
[1747750027926,4.95967,2478.6,2478.5,1.00746776]
[1747750028121,7.69967,2478.6,2478.5,1.00746776]
[1747750028322,12.69967,2478.6,2478.5,1.00746776]
[1747750030423,8.77199001,2478.4,2478.3,0.00604485]
[1747750030826,0.80685,2478.0,2477.9,3.2078]
[1747750031026,0.80698,2477.7,2477.6,3.2078]
[1747750031227,2.74,2477.7,2477.6,3.2078]
[1747750031430,2.74,2477.7,2477.6,4.01478]
[1747750031618,2.74,2477.7,2477.6,6.03282]
[1747750031821,5.56499,2477.7,2477.6,3.2078]
[1747750032127,0.80702,2477.5,2477.4,0.00604485]
[1747750032525,2.825225,2477.5,2477.4,0.00604485]
[1747750033228,2.01782,2477.2,2476.7,53.1238]
[1747750033423,0.80721,2476.9,2476.8,2.0766]
[1747750034034,2.825905,2476.9,2476.8,2.0766]
[1747750034944,0.80728,2476.7,2476.6,0.00402992]
[1747750035434,2.826135,2476.7,2476.6,0.00402992]
[1747750035732,2.826135,2476.7,2475.9,0.32295725]
[1747750035733,0.8075,2476.0,2475.9,0.32295725]
[1747750036127,7.826925,2476.0,2475.9,0.32295725]
[1747750036424,2.01906,2475.7,2475.1,3.2078]
[1747750036625,0.8079,2474.8,2474.4,5.09025635]
[1747750036825,0.8079,2474.8,2474.5,5.48330772]
[1747750037034,6.036105,2474.8,2474.5,3.97850772]
[1747750037249,0.80796,2474.6,2474.5,3.97850772]
[1747750037435,2.40584,2474.7,2474.5,3.97850772]
[1747750037736,7.968205,2474.8,2474.5,4.01579]
[1747750037737,0.6061,2474.6,2474.5,4.01579]
[1747750037937,0.6061,2474.6,2474.5,6.03627999]
[1747750038138,0.6061,2474.6,2474.5,15.38907999]
[1747750038340,1e-08,2474.6,2474.5,15.38907999]
[1747750039342,0.00605742,2475.6,2475.5,0.80767]
[1747750039541,0.00605742,2475.6,2475.5,4.01547]
[1747750039741,0.81370742,2475.6,2475.4,0.80768]
[1747750039938,2.02589242,2475.6,2475.3,9.274]
[1747750040134,0.00605742,2475.6,2475.5,4.01547]
[1747750040534,0.00605742,2475.6,2475.5,5.227555]
[1747750040838,0.80767,2475.5,2475.4,3.2078]
[1747750041134,6.78491242,2475.6,2474.7,9.274]
[1747750041438,4.7994,2475.4,2474.6,5.3469]
[1747750041642,0.80793,2474.7,2474.6,3.2078]
[1747750041938,0.9492,2474.8,2474.6,3.2078]
[1747750042144,0.9492,2474.8,2474.7,0.80793]
[1747750042537,4.989385,2474.8,2474.3,3.2078]
[1747750042734,2.02024,2474.2,2473.7,14.75843827]
[1747750042930,0.00605742,2474.2,2473.7,14.75843827]
[1747750043241,2.74605742,2474.2,2473.7,16.77949827]
[1747750043442,2.74605742,2474.2,2473.7,18.80009827]
[1747750043630,2.74605742,2474.2,2474.1,0.80812]
[1747750044142,0.81414742,2474.2,2474.1,2.020895]
[1747750044337,0.80813,2474.1,2474.0,9.275]
[1747750044536,0.81417742,2474.2,2474.0,10.08316]
[1747750044839,0.00605742,2474.2,2473.8,3.2078]
[1747750045441,0.80814,2474.1,2473.9,0.80818]
[1747750045644,0.00605742,2474.2,2474.0,9.278]
[1747750045949,2.02707742,2474.2,2474.0,9.278]
[1747750046242,2.83510242,2474.2,2474.0,9.278]
[1747750046545,0.80819,2473.9,2473.8,3.2078]
[1747750046742,0.00605742,2474.2,2473.8,3.2078]
[1747750046945,0.00605742,2474.2,2474.0,0.80815]
[1747750047145,0.00605742,2474.2,2474.1,0.80812]
[1747750047342,0.00605742,2474.2,2473.9,9.278]
[1747750047540,0.81416742,2474.2,2474.0,0.80814]
[1747750047847,0.00605742,2474.2,2474.1,0.89298477]
[1747750048143,0.81414742,2474.2,2474.1,9.36486477]
[1747750048342,0.00605742,2474.2,2474.1,15.40167977]
[1747750048535,0.9492,2474.8,2474.7,0.80793]
[1747750048738,0.9492,2474.8,2474.1,19.59355977]
[1747750048739,0.9492,2474.8,2474.6,3.2078]
[1747750048938,0.80794,2474.7,2474.6,2.020445]
[1747750049139,0.80793,2474.7,2474.6,2.020445]
[1747750050054,0.80796,2474.6,2474.5,2.74]
[1747750050344,0.80799,2474.5,2474.4,0.00605742]
[1747750050743,2.82864,2474.5,2474.4,0.00605742]
[1747750050944,2.82864,2474.5,2474.4,0.81408742]
[1747750051442,0.80799,2474.5,2474.4,2.83471742]
[1747750051649,2.82864,2474.5,2474.4,0.00605742]
[1747750051852,0.80795,2474.7,2474.6,0.80796]
[1747750052040,0.80796,2474.6,2474.5,2.28387]
[1747750052347,0.9492,2474.8,2474.5,1.4759]
[1747750052544,0.9492,2474.8,2474.7,0.80793]
[1747750053042,0.9492,2474.8,2474.7,4.304235]
[1747750053639,0.9492,2474.8,2474.7,3.496305]
[1747750053847,3.777505,2474.8,2474.7,1.4759]
[1747750054036,0.80793,2474.7,2474.6,2.74]
[1747750054243,1.5661,2474.7,2474.6,0.80796]
[1747750054441,2.02049,2474.7,2474.6,0.80794]
[1747750054648,1.75711,2474.8,2474.7,0.80793]
[1747750054854,1.75711,2474.8,2474.7,2.42423]
[1747750055352,0.9492,2474.8,2474.7,4.444635]
[1747750055851,3.777505,2474.8,2474.7,1.6163]
[1747750056744,5.255405,2474.8,2474.7,1.6163]
[1747750057143,4.306205,2474.8,2474.7,1.6163]
[1747750058151,0.80799,2474.5,2474.4,9.28805742]
[1747750058343,0.80799,2474.5,2474.4,10.89285742]
[1747750058540,2.82864,2474.5,2474.4,9.28805742]
[1747750058948,4.35274,2474.5,2474.4,9.28805742]
[1747750059341,4.35274,2474.5,2474.4,0.00605742]
[1747750059546,4.35274,2474.5,2474.2,1.6048]
[1747750059547,0.80822,2473.8,2473.6,0.21104532]
[1747750059760,0.80821,2473.9,2473.7,13.15543827]
[1747750059952,0.80821,2473.9,2473.8,1.6048]
[1747750060256,0.80813,2474.1,2474.0,0.80813]
[1747750060450,3.2078,2474.4,2473.8,16.09666]
[1747750060658,5.22789,2474.4,2473.8,17.2036]
[1747750060855,0.80819,2473.9,2473.8,6.427]
[1747750061054,0.80819,2473.9,2473.8,16.49822]
[1747750061358,0.80819,2473.9,2473.8,17.71114]
[1747750061755,0.80819,2473.9,2473.8,16.09674]
[1747750061954,0.80819,2473.9,2473.8,16.90496]
[1747750062551,3.0794,2474.3,2473.8,16.09674]
[1747750062864,6.72621,2474.7,2473.8,16.09674]
[1747750062865,4.01573,2474.7,2474.6,0.80796]
[1747750063156,2.82842,2474.7,2474.6,9.264]
[1747750063357,0.80793,2474.7,2474.6,9.264]
[1747750063557,0.80793,2474.7,2474.6,11.28448999]
[1747750063761,0.80793,2474.7,2474.6,12.79558999]
[1747750064054,0.80793,2474.7,2474.6,1.5111]
[1747750064254,4.50133742,2474.9,2474.6,4.33954999]
[1747750064255,0.95515742,2474.9,2474.6,4.33954999]
[1747750064446,1.6095,2475.7,2475.6,0.80763]
[1747750064651,1.6095,2475.7,2475.5,9.264]
[1747750065153,2.41712,2475.7,2475.5,10.07165]
[1747750065357,5.64829,2475.7,2475.0,1.4886]
[1747750065547,0.80767,2475.5,2475.4,0.21104532]
[1747750065954,9.437005,2475.5,2475.4,0.21104532]
[1747750066255,12.177005,2475.5,2475.4,0.21104532]
[1747750066958,7.177005,2475.5,2475.4,0.21104532]
[1747750067153,4.437005,2475.5,2475.4,0.21104532]
[1747750067460,3.2078,2475.6,2475.5,0.80767]
[1747750067662,3.2078,2475.6,2475.5,10.07067]
[1747750067853,2.29952742,2475.8,2475.7,0.8076]
[1747750068158,0.81364742,2475.8,2475.5,11.282755]
[1747750068458,0.00605742,2475.8,2475.7,0.8076]
[1747750068855,0.81362742,2475.8,2475.7,2.01959]
[1747750069055,0.81362742,2475.8,2475.7,2.82719]
[1747750069262,0.00605742,2475.8,2475.7,2.01959]
[1747750069554,85.05751779,2477.6,2476.0,2.01874]
[1747750069555,3.2078,2476.9,2476.0,2.01874]
[1747750069759,4.707,2476.9,2476.3,3.2078]
[1747750069957,1.4992,2476.9,2476.2,2.0186]
[1747750070350,6.72506,2476.9,2476.3,0.12616353]
[1747750070659,0.80734,2476.5,2476.4,9.26805742]
[1747750070861,0.80732,2476.6,2476.4,10.20157095]
[1747750071055,0.80734,2476.5,2476.4,9.39422095]
[1747750071256,0.80734,2476.5,2476.4,9.59116372]
[1747750071461,0.80734,2476.5,2476.4,11.736354]
[1747750071767,0.80733,2476.6,2476.4,12.543704]
[1747750071971,0.80733,2476.6,2476.4,10.524684]
[1747750072263,0.80733,2476.6,2476.5,0.12617028]
[1747750072663,2.82627,2476.6,2476.5,0.12617028]
[1747750072867,6.03407,2476.6,2476.5,0.44927658]
[1747750073058,11.03407,2476.6,2476.5,0.44927658]
[1747750073257,13.77407,2476.6,2476.5,0.44927658]
[1747750073565,0.80734,2476.5,2476.4,0.00605742]
[1747750073753,3.63924,2476.5,2476.4,0.00605742]
[1747750073958,0.80741,2476.3,2476.2,0.2150789]
[1747750074254,4.01521,2476.3,2476.2,0.2150789]
[1747750074454,2.01861,2476.2,2475.7,0.56599572]
[1747750074771,2.01861,2476.2,2475.3,3.2078]
[1747750074772,0.80765,2475.6,2475.3,3.20780662]
[1747750074960,0.80765,2475.6,2475.4,0.80767]
[1747750075162,0.80765,2475.6,2475.5,0.80767]
[1747750075358,0.8077,2475.4,2475.3,3.21386404]
[1747750075661,0.8077,2475.4,2475.3,12.47386404]
[1747750075965,2.827615,2475.4,2475.3,3.21386404]
[1747750076168,5.567615,2475.4,2475.3,3.21386404]
[1747750077067,5.567615,2475.4,2475.3,3.21385742]
[1747750078166,2.827615,2475.4,2475.3,3.21385742]
[1747750079566,0.80729,2476.7,2475.3,17.30185742]
[1747750079871,0.80734,2476.5,2476.4,5.227715]
[1747750080065,0.80734,2476.5,2476.4,3.2078]
[1747750080268,0.80747,2476.1,2476.0,3.2078]
[1747750080573,0.80754,2475.9,2475.8,2.019915]
[1747750081070,2.8347,2476.3,2475.8,2.019915]
[1747750081259,0.80744,2476.2,2476.1,2.019915]
[1747750081872,0.80747,2476.1,2476.0,3.2078]
[1747750082280,2.01883,2476.0,2475.7,9.26]
[1747750082468,2.01862,2476.2,2475.9,2.019915]
[1747750082665,0.80747,2476.1,2476.0,2.019915]
[1747750083171,0.8076,2475.7,2475.6,3.2078]
[1747750083568,2.82727,2475.7,2475.6,3.2078]
[1747750083879,0.8077,2475.4,2475.3,3.21385742]
[1747750084174,3.5477,2475.4,2475.3,3.21385742]
[1747750084374,0.80786,2474.9,2474.8,0.56599572]
[1747750084569,0.80786,2474.9,2474.8,5.79371072]
[1747750084769,2.828185,2474.9,2474.8,3.77379572]
[1747750085277,2.828185,2474.9,2474.8,3.2078]
[1747750085475,2.828185,2474.9,2474.8,3.33406337]
[1747750085674,0.80809,2474.2,2474.1,3.2078]
[1747750085978,0.80806,2474.3,2474.2,2.019915]
[1747750086171,0.80812,2474.2,2474.0,0.80815]
[1747750086567,0.80812,2474.2,2474.1,2.019915]
[1747750086877,0.80812,2474.2,2473.9,2.019915]
[1747750086878,7.24912,2474.2,2473.9,2.019915]
[1747750087077,2.7616,2474.8,2474.1,5.227715]
[1747750087264,0.80796,2474.6,2474.5,2.019915]
[1747750087581,3.2078,2475.0,2474.7,2.019915]
[1747750087871,5.59675192,2475.7,2475.0,0.80783]
[1747750088067,6.40437192,2475.7,2475.6,2.019915]
[1747750088471,0.80766,2475.6,2475.3,9.29]
[1747750088671,2.01909,2475.6,2475.0,3.2078]
[1747750088873,3.496055,2475.6,2475.1,2.019915]
[1747750089068,3.21385742,2475.5,2475.4,2.019915]
[1747750089271,4.02153742,2475.5,2475.4,2.019915]
[1747750089464,6.04137242,2475.5,2475.4,2.019915]
[1747750089671,0.8077,2475.4,2475.2,0.80775]
[1747750089870,0.8077,2475.4,2475.3,2.019915]
[1747750090075,4.02154742,2475.5,2475.3,2.827625]
[1747750090277,3.21385742,2475.5,2475.4,12.117615]
[1747750090475,3.21385742,2475.5,2475.4,11.309915]
[1747750090677,4.02152742,2475.5,2475.4,11.309915]
[1747750091075,4.02152742,2475.5,2475.4,9.29]
[1747750091275,0.80773,2475.3,2475.2,9.61330034]
[1747750091474,3.21385742,2475.5,2475.4,2.019915]
[1747750091774,4.02153742,2475.5,2475.4,2.019915]
[1747750094377,0.00605742,2475.5,2475.4,2.019915]
[1747750094569,3.2078,2475.8,2475.7,0.8076]
[1747750094774,3.2078,2475.8,2475.7,12.116515]
[1747750094974,4.01537,2475.8,2475.7,11.308915]
[1747750095180,5.22739,2475.8,2475.6,2.74]
[1747750095379,0.8076,2475.7,2475.6,2.74]
[1747750095779,3.2078,2475.8,2475.6,4.759915]
[1747750095981,0.8076,2475.7,2475.6,2.74]
[1747750096181,3.2078,2475.8,2475.7,2.019915]
[1747750096381,3.2078,2475.8,2475.7,2.827515]
[1747750096779,4.01537,2475.8,2475.7,2.019915]
[1747750096980,3.2078,2475.8,2475.7,3.15061739]
[1747750097682,0.00605742,2475.9,2475.8,0.80757]
[1747750097887,0.00605742,2475.9,2475.8,2.827485]
[1747750098081,3.2078,2476.2,2476.1,0.80747]
[1747750098278,3.2078,2476.2,2476.1,12.116385]
[1747750098581,0.80736,2476.5,2476.4,0.80733]
[1747750098791,0.80739,2476.4,2476.3,0.80738]
[1747750098982,0.80736,2476.5,2476.4,0.80735]
[1747750099389,0.80736,2476.5,2476.4,11.43508166]
[1747750099576,0.80733,2476.6,2476.4,11.43508166]
[1747750099785,0.00605742,2476.7,2476.6,2.827225]
[1747750099985,0.00605742,2476.7,2476.6,6.16119166]
[1747750100285,0.00605742,2476.7,2476.6,11.16119166]
[1747750101688,0.00605742,2476.7,2476.6,12.44469166]
[1747750102288,0.00605742,2476.7,2476.6,12.76759957]
[1747750102685,0.00605742,2476.7,2476.6,7.76759957]
[1747750102888,0.00605742,2476.7,2476.6,17.05459957]
[1747750103581,0.00605742,2476.7,2476.6,4.94037457]
[1747750103887,0.80741,2476.3,2476.2,0.43671453]
[1747750104277,0.8075,2476.0,2475.9,0.56599572]
[1747750104476,0.8076,2475.7,2475.6,0.7109893]
[1747750105490,0.80767,2475.5,2475.4,0.00605742]
[1747750105986,0.8078,2475.1,2475.0,9.286]
[1747750106188,2.01942,2475.2,2474.9,1.65688957]
[1747750106495,0.80786,2474.9,2474.8,0.28661313]
[1747750106983,0.80786,2474.9,2474.8,1.9435027]
[1747750107286,0.80786,2474.9,2474.6,9.286]
[1747750107287,2.74,2474.9,2474.6,9.29205742]
[1747750107588,3.54789,2474.9,2474.8,1.65688957]
[1747750107997,0.80793,2474.7,2474.6,9.29205742]
[1747750108282,2.020325,2474.9,2474.6,10.94894699]
[1747750108488,0.80793,2474.7,2474.6,9.29205742]
[1747750108880,0.80791,2474.8,2474.6,11.75688699]
[1747750109087,3.2078,2474.9,2474.8,1.65688957]
[1747750109290,4.01566,2474.9,2474.8,1.65688957]
[1747750109588,3.2078,2474.9,2474.8,1.65688957]
[1747750109791,0.00605742,2475.1,2474.8,2.96098957]
[1747750110085,2.83413242,2475.1,2474.9,1.65688957]
[1747750110288,2.83413242,2475.1,2474.9,2.11196]
[1747750110787,0.80783,2475.0,2474.9,2.11196]
[1747750110996,0.00605742,2475.1,2475.0,1.65688957]
[1747750111183,0.00605742,2475.1,2475.0,11.75371957]
[1747750111989,2.02621742,2475.1,2474.9,9.289]
[1747750112297,0.80783,2475.0,2474.9,9.289]
[1747750112589,2.01958,2475.0,2474.7,3.2078]
[1747750112889,0.80793,2474.7,2474.6,0.00605742]
[1747750113085,0.00605742,2475.1,2474.7,1.65688957]
[1747750113288,0.00605742,2475.1,2475.0,2.46471957]
[1747750113483,5.36006453,2476.3,2475.5,0.80767]
[1747750113484,3.2078,2475.6,2475.5,0.80767]
[1747750113685,3.2078,2476.1,2475.8,1.65688957]
[1747750113893,2.01951,2475.9,2475.8,1.65688957]
[1747750114091,0.80786,2474.9,2474.8,1.371]
[1747750114287,2.01921,2475.5,2474.9,1.66661313]
[1747750114487,5.22673,2475.8,2475.3,0.80772]
[1747750114488,0.00605742,2475.4,2475.3,0.80772]
[1747750114689,0.00605742,2475.4,2475.3,10.09772]
[1747750114991,0.00605742,2475.4,2475.3,11.309915]
[1747750115193,0.81375742,2475.4,2475.3,2.019915]
[1747750115388,0.81375742,2475.4,2475.3,11.309915]
[1747750115591,0.00605742,2475.4,2475.3,12.117645]
[1747750116289,0.81375742,2475.4,2475.3,11.43613919]
[1747750116598,0.00605742,2475.4,2475.3,12.24386919]
[1747750116991,0.00605742,2475.4,2475.3,20.45166919]
[1747750117192,0.00605742,2475.4,2475.3,23.19166919]
[1747750117994,0.80755,2475.9,2475.4,2.01918]
[1747750118195,0.80755,2475.9,2475.8,0.80757]
[1747750118596,5.944,2476.3,2475.8,2.14573419]
[1747750118597,2.01854,2476.3,2475.8,2.14573419]
[1747750118801,0.80748,2476.1,2476.0,0.8075]
[1747750119201,0.80748,2476.1,2476.0,2.019345]
[1747750119603,0.00605742,2476.3,2476.1,0.80744]
[1747750119817,0.00605742,2476.3,2476.2,0.80744]
[1747750120105,0.00605742,2476.3,2476.2,4.14146419]
[1747750120292,0.00605742,2476.3,2476.2,6.16064419]
[1747750120806,0.00605742,2476.3,2476.2,11.16064419]
[1747750121299,0.99388819,2476.9,2476.8,0.80724]
[1747750121503,0.99388819,2476.9,2476.8,13.52326419]
[1747750121691,0.80717,2477.1,2477.0,0.80717]
[1747750121894,0.80721,2476.9,2476.8,14.608495]
[1747750122099,2.12009,2477.0,2476.9,0.80721]
[1747750122302,0.80719,2477.0,2476.9,0.80721]
[1747750122603,0.80719,2477.0,2476.9,2.01861]
[1747750122902,0.80719,2477.0,2476.9,2.95195623]
[1747750123197,1.31895742,2477.2,2476.9,2.14474623]
[1747750123390,2.12608742,2477.2,2477.1,0.80714]
[1747750123591,0.80714,2477.1,2477.0,0.93329623]
[1747750123896,0.80714,2477.1,2477.0,0.93331623]
[1747750124093,0.80714,2477.1,2477.0,2.95184623]
[1747750124300,1.31895742,2477.2,2477.1,0.80714]
[1747750124301,2.12609742,2477.2,2477.1,0.80714]
[1747750124706,1.31895742,2477.2,2477.1,0.93327623]
[1747750125007,2.12606742,2477.2,2477.1,0.93327623]
[1747750125599,1.31895742,2477.2,2477.1,0.93327623]
[1747750125807,0.00605742,2477.2,2477.1,4.14107623]
[1747750125996,0.00605742,2477.2,2477.1,6.15952623]
[1747750126505,3.50754,2477.8,2477.7,0.80695]
[1747750126809,1.3031,2477.9,2477.8,0.80692]
[1747750127102,0.8068,2478.2,2478.1,0.80682]
[1747750127298,2.1099,2478.2,2478.1,0.80682]
[1747750127496,2.10989,2478.2,2478.1,2.824455]
[1747750127701,0.80676,2478.3,2478.2,0.80675]
[1747750127900,0.80679,2478.2,2478.1,2.017635]
[1747750128102,1.33175742,2478.4,2478.3,0.80675]
[1747750128293,2.13847742,2478.4,2478.3,2.82422]
[1747750128493,2.13847742,2478.4,2478.3,2.95029402]
[1747750128805,2.13847742,2478.4,2478.3,2.14354402]
[1747750129217,4.87847742,2478.4,2478.3,2.14354402]
[1747750129705,6.89594743,2478.4,2478.3,0.12607402]
[1747750129900,6.89594743,2478.4,2478.3,9.50307402]
[1747750130297,4.07175742,2478.4,2478.3,12.32729402]
[1747750130507,4.87847742,2478.4,2478.3,12.20122]
[1747750130907,4.87847742,2478.4,2478.3,11.39447]
[1747750131807,3.55277742,2478.4,2478.3,12.20122]
[1747750132402,3.55277742,2478.4,2478.3,11.39447]
[1747750132902,2.74605742,2478.4,2478.3,15.40902]
[1747750133701,3.2078,2479.0,2478.3,25.14441825]
[1747750133902,3.2078,2479.4,2479.3,0.80643]
[1747750134109,0.80643,2479.3,2479.2,9.376]
[1747750134405,2.74,2479.4,2479.3,0.80643]
[1747750134604,3.54641,2479.4,2479.3,4.12769]
[1747750134815,3.54641,2479.4,2479.3,1.3046]
[1747750135004,0.80646,2479.2,2479.1,0.00605742]
[1747750135309,3.54646,2479.2,2479.1,10.18654742]
[1747750135513,3.54646,2479.2,2479.1,12.20336742]
[1747750135804,3.54646,2479.2,2479.1,11.39687742]
[1747750136304,2.74,2479.2,2479.1,12.20336742]
[1747750136707,3.54646,2479.2,2479.1,12.20336742]
[1747750137207,2.74,2479.2,2479.1,12.20336742]
[1747750137908,3.54646,2479.2,2479.1,11.39687742]
[1747750138703,3.54646,2479.2,2479.1,11.39487742]
[1747750140210,3.54646,2479.2,2479.1,9.37805742]
[1747750140712,5.56328,2479.2,2479.1,0.00605742]
[1747750141004,0.80662,2478.7,2478.6,3.2078]
[1747750141213,0.80675,2478.3,2478.2,3.33385664]
[1747750141406,0.80675,2478.3,2478.2,12.70485664]
[1747750141705,0.80675,2478.3,2478.2,9.371]
[1747750141907,2.74,2479.2,2478.2,19.596355]
[1747750142205,0.80665,2478.7,2478.6,0.80663]
[1747750142412,0.80665,2478.7,2478.6,10.30367999]
[1747750142610,6.031675,2478.7,2478.6,0.12604999]
[1747750142909,0.80666,2478.6,2478.5,0.00605742]
[1747750143109,2.07296,2478.6,2478.5,0.00605742]
[1747750143412,4.09027,2478.6,2478.5,0.00605742]
[1747750143808,9.09027,2478.6,2478.5,7.42e-06]
[1747750144308,13.13907,2478.6,2478.5,7.42e-06]
[1747750145008,0.80695,2477.7,2477.6,9.371]
[1747750145203,0.80701,2477.5,2477.4,3.2078]
[1747750145603,0.80711,2477.2,2477.1,1.3279]
[1747750145812,0.80715,2477.1,2477.0,12.79137439]
[1747750146008,2.08465,2477.1,2477.0,9.58357439]
[1747750146310,6.03603,2477.1,2477.0,9.70971364]
[1747750146509,6.84318,2477.1,2477.0,11.91059364]
[1747750146708,6.84318,2477.1,2477.0,1.51983925]
[1747750146913,2.74,2477.1,2477.0,2.95184925]
[1747750147119,0.00605742,2477.3,2477.2,0.80711]
[1747750147407,5.22472,2478.3,2477.8,0.80691]
[1747750147615,0.80685,2478.0,2477.9,9.49813925]
[1747750147818,0.80685,2478.0,2477.9,10.30501925]
[1747750148012,2.824645,2478.0,2477.9,1.51983925]
[1747750148207,0.80685,2478.0,2477.9,3.53763425]
[1747750148509,6.032445,2478.0,2477.9,0.12613925]
[1747750148711,11.032445,2478.0,2477.9,0.12613925]
[1747750149018,0.80688,2477.9,2477.8,9.249]
[1747750149312,0.80711,2477.2,2477.1,0.32281845]
[1747750149509,0.8071,2477.3,2477.1,4.33773845]
[1747750149712,7.2701,2477.9,2477.2,1.3371]
[1747750149906,7.2701,2477.9,2477.3,9.25]
[1747750150103,2.12577,2478.0,2477.8,3.2078]
[1747750150314,2.12577,2478.0,2477.9,10.5871]
[1747750150710,4.143565,2478.0,2477.9,10.5871]
[1747750150911,2.12577,2478.0,2477.9,10.5871]
[1747750151115,4.143565,2478.0,2477.9,10.5871]
[1747750151315,3.336695,2478.0,2477.2,3.2078]
[1747750151612,0.80695,2477.7,2477.6,0.32281036]
[1747750151813,0.80695,2477.7,2477.6,1.65991036]
[1747750152016,0.80695,2477.7,2477.6,10.90991036]
[1747750152017,2.82499,2477.7,2477.6,10.90991036]
[1747750152407,2.82499,2477.7,2477.6,1.65991036]